Cogmind - Beta 10.2 @@@ ROGUE MODE // 2021.06.25 @ 19:14:08 Player: Finestep Result: Self-destructed Performance ------------- Evolutions (9) 4500 Regions Visited (27) 5400 Robots Destroyed (179) 895 Value Destroyed (4889) 4889 Prototype IDs (222) 4440 Alien Tech Used (6) 1200 Bonus (11537) 11537 TOTAL SCORE: 32861 Bonus ------- High Alert Combat Kills 427 Follower Combat Kills 2342 Met Data Miner 300 Used Data Conduit 3000 Met Imprinter 300 Found Hidden Lab 3000 Decrypted A0 Command 3000 Pursued by Intercept 500 Friendly Fire -1332 Cogmind --------- Core Integrity 1492/1600 Matter 300/300 Energy 7/900 System Corruption 15% Temperature Cool (9) Movement Flying (184) Ox2 Location -1/Command Parts ------- > --- POWER (3) -------- Backup Power VII Backup Power VII > --- PROPULSION (6) --- Experimental Cesium-ion Thruster Improved Diametric Drive > --- UTILITY (13) ----- Medium Storage Unit Advanced Energy Well Experimental Signal Interpreter Advanced Melee Analysis Suite Advanced Transmission Jammer Advanced Powered Armor Improved Hacking Suite Deep Network Scanner > --- WEAPON (4) ------- Plasma Lance Plasma Lance Plasma Lance Plasma Lance > --- INVENTORY (8) ---- Experimental Energy Well (1000) Experimental Sensor Array Phase Redirector Subatomic Replicator HERF Cannon Peak State ------------ > --- POWER ------------ Backup Power VII Backup Power VII Backup Power VII > --- PROPULSION ------- Field Propulsion Drive Experimental Cesium-ion Thruster Experimental Cesium-ion Thruster Field Propulsion Array Improved Diametric Drive > --- UTILITY ---------- Medium Storage Unit Advanced Energy Well Experimental Signal Interpreter Advanced Melee Analysis Suite Advanced Transmission Jammer Advanced Reaction Control System Advanced Phase Shifter Improved Utility Shielding Experimental Powered Armor Improved Hacking Suite Improved Hacking Suite Deep Network Scanner Ghost Barrier > --- WEAPON ----------- Plasma Lance Plasma Lance Plasma Lance Plasma Lance > --- INVENTORY -------- Experimental Energy Well Experimental Sensor Array Nanoactuators Advanced Powered Armor Advanced Force Field Phase Redirector Subatomic Replicator HERF Cannon [Rating: 190] Favorites ----------- Power Light Nuclear Core Engine Light Angular Momentum Engine Power Core Light Nuclear Core Reactor Light Antimatter Reactor Propulsion Improved Flight Unit Treads Light Treads Wheel Armored Wheel Flight Unit Improved Flight Unit Utility High-capacity Storage Unit Device Experimental Sensor Array Storage High-capacity Storage Unit Processor Advanced Signal Interpreter Hackware Hacking Suite Protection Experimental Powered Armor Artifact Phase Redirector Weapon Improved Assault Rifle Energy Gun Beamcaster Energy Cannon Matter Neutralizer Ballistic Gun Improved Assault Rifle Launcher Advanced EMP Blaster Slashing Weapon Makeshift Sword Piercing Weapon CR-A16's Pointy Stick Special Melee Weapon Improved Datajack Build | -11 -10 -10 -9 -9 -8 -7 -7 -7 -7 -6 -6 -6 -6 -6 -5 -5 -5 -4 -4 -4 -3 -3 -3 -2 -2 -1 -1 ------- Run | Scr Mat Min Mat Sto Mat Fac Low Low Dat Pro Fac Low Low Zio Pro Fac Ext Fac Arm Lab Res Qua Sec Res Tes Acc Com Slots Evolved 18 | . . . 2 . 2 2 . . . . 2 . . . . 2 . 2 . . 2 . . 2 . 2 . Power 1 | . . . . . . 1 . . . . . . . . . . . . . . . . . . . . . Propulsion 4 | . . . 1 . 1 1 . . . . . . . . . . . . . . . . . 1 . . . Utility 11 | . . . 1 . 1 . . . . . 2 . . . . 2 . 2 . . 2 . . 1 . . . Weapon 2 | . . . . . . . . . . . . . . . . . . . . . . . . . . 2 . Parts Attached 277 | 6 6 4 18 32 20 17 7 5 7 4 7 4 . 7 9 4 15 10 28 9 13 9 6 2 13 7 8 Power 27 | 1 . 2 1 1 3 1 . . . . 1 1 . 1 1 . 3 . 4 . 1 1 1 1 1 . 2 Engine 12 | 1 . 1 1 . 3 1 . . . . . 1 . . 1 . 2 . . . . 1 . . . . . Core 11 | . . 1 . 1 . . . . . . 1 . . 1 . . 1 . 3 . 1 . . . 1 . 1 Reactor 4 | . . . . . . . . . . . . . . . . . . . 1 . . . 1 1 . . 1 Propulsion 55 | 2 . . 9 16 7 5 . 1 3 . . . . . . . 1 3 1 . 3 1 1 . 2 . . Treads 32 | 2 . . 8 15 7 . . . . . . . . . . . . . . . . . . . . . . Leg . | . . . . . . . . . . . . . . . . . . . . . . . . . . . . Wheel 1 | . . . . 1 . . . . . . . . . . . . . . . . . . . . . . . Hover . | . . . . . . . . . . . . . . . . . . . . . . . . . . . . Flight 22 | . . . 1 . . 5 . 1 3 . . . . . . . 1 3 1 . 3 1 1 . 2 . . Utility 106 | 1 4 . 1 3 2 5 6 3 3 3 3 2 . 4 . 4 7 4 16 6 5 5 3 1 6 3 6 Device 42 | . . . . . . 1 3 2 1 2 . 1 . 4 . 2 3 . 6 2 3 1 2 . 3 2 4 Storage 14 | 1 4 . 1 3 . 1 . . . . . . . . . . 1 . . . . 1 1 . . . 1 Processor 6 | . . . . . . 2 . . . . . . . . . 2 1 . 1 . . . . . . . . Hackware 13 | . . . . . . 1 . . . . 3 . . . . . . 1 5 1 . . . . 2 . . Protection 30 | . . . . . 2 . 3 1 2 1 . 1 . . . . 2 3 4 3 2 2 . 1 1 1 1 Artifact 1 | . . . . . . . . . . . . . . . . . . . . . . 1 . . . . . Weapon 89 | 2 2 2 7 12 8 6 1 1 1 1 3 1 . 2 8 . 4 3 7 3 4 2 1 . 4 4 . Energy Gun 9 | 1 2 1 1 2 . . . . . . . . . . . . . . . 2 . . . . . . . Energy Cannon 21 | . . . . 3 1 . . . . . 1 . . . 1 . . 3 5 1 2 1 . . 3 . . Ballistic Gun 16 | 1 . . 5 4 6 . . . . . . . . . . . . . . . . . . . . . . Ballistic Cannon . | . . . . . . . . . . . . . . . . . . . . . . . . . . . . Launcher 14 | . . 1 1 2 1 1 . 1 . . . . . . 3 . 2 . . . 2 . . . . . . Special Weapon . | . . . . . . . . . . . . . . . . . . . . . . . . . . . . Impact Weapon . | . . . . . . . . . . . . . . . . . . . . . . . . . . . . Slashing Weapon 13 | . . . . 1 . 4 1 . 1 1 1 1 . 1 . . . . . . . 1 1 . . . . Piercing Weapon 15 | . . . . . . . . . . . 1 . . 1 4 . 2 . 2 . . . . . 1 4 . Special Melee Weapon 1 | . . . . . . 1 . . . . . . . . . . . . . . . . . . . . . Unidentified Prototypes 15 | . . . 2 1 1 . 1 . . . . . . 1 . . . . . 6 . 2 . . 1 . . Parts Lost 38 | . 2 . 5 1 2 . . 1 . . 1 1 . . . . 4 . 1 . 5 1 2 . . . 12 Power 12 | . 1 . 1 . 2 . . . . . 1 1 . . . . 2 . . . 1 1 1 . . . 1 Propulsion 7 | . . . 1 . . . . 1 . . . . . . . . 1 . . . 1 . . . . . 3 Utility 12 | . . . . . . . . . . . . . . . . . 1 . 1 . 2 . . . . . 8 Weapon 7 | . 1 . 3 1 . . . . . . . . . . . . . . . . 1 . 1 . . . . Highest Loss Streak 12 | . 2 . 2 1 1 . . 1 . . 1 1 . . . . 4 . 1 . 5 1 1 . . . 12 Average Slot Usage (%) 95 | . 89 98 98 99 99 99 91 85 89 89 90 90 93 93 93 94 92 93 96 98 96 93 76 75 86 91 93 Engine 5 | . 9 4 4 1 7 15 14 14 14 14 11 3 6 5 1 5 4 10 6 . . 3 . . . . . Core 5 | . . 7 6 9 1 . . . . . . 6 6 6 10 5 4 5 6 10 12 8 1 . 8 11 9 Treads 16 | . 28 28 32 32 36 . . . . . . . . . . . . . . . . . . . . . . Flight 13 | . . . . . . 36 37 35 35 35 31 31 31 31 31 27 26 25 25 25 21 22 18 16 18 19 18 Device 4 | . . . . . . 6 6 5 5 7 6 5 6 6 6 11 9 9 8 3 10 7 7 8 9 11 14 Storage 17 | . 23 28 32 33 27 7 7 7 7 7 6 6 6 6 6 5 5 5 5 5 4 7 9 8 4 3 3 Processor 5 | . . . . . . 7 14 14 14 14 8 6 6 6 6 11 11 15 15 15 13 13 13 12 12 10 7 Hackware 7 | . . . . . . 5 . . . . 15 18 18 18 18 16 14 15 19 24 21 18 18 16 18 15 14 Protection 1 | . . . . . 8 . . 1 1 . . . . . . . 1 3 1 . 2 5 4 8 8 6 6 Energy Gun 2 | . 13 13 3 6 . . . . . . . . . . . . . . . . . . . . . . . Ballistic Gun 7 | . 14 14 18 14 17 . . . . . . . . . . . . . . . . . . . . . . Slashing Weapon 2 | . . . . . . 11 7 7 11 11 5 6 6 6 6 5 5 5 1 . . 3 3 . . . . Piercing Weapon 2 | . . . . . . . . . . . 4 6 6 6 4 5 4 . 4 5 4 . . . . 7 15 Naked Turns . | . . . . . . . . . . . . . . . . . . . . . . . . . . . . Heaviest Build 117 | 10 67 72 93 112 117 31 29 29 30 30 30 36 29 29 35 29 35 37 37 44 39 55 42 42 50 51 74 Greatest Support 80 | 40 40 40 60 63 80 30 30 30 30 30 30 30 30 30 30 30 31 37 41 41 46 43 48 48 57 55 55 Greatest Overweight (x) 2 | . 1 1 2 2 1 1 . 1 . . . 1 . . 1 . 1 . . 1 . 1 . . 1 1 2 Average Overweight (x) . | . . 1 1 1 1 . . . . . . . . . . . . . . . . . . . . . . Largest Inventory Capacity 28 | 6 20 20 26 28 28 28 8 8 8 8 8 8 8 8 8 8 8 8 8 8 8 8 8 8 8 8 8 Average Capacity 16 | 5 14 20 25 27 28 8 8 8 8 8 8 8 8 8 8 8 8 8 8 8 8 8 8 8 8 8 8 Most Carried 28 | 5 16 20 26 28 28 28 8 8 8 8 8 8 8 8 8 8 8 8 8 8 8 8 8 8 8 8 8 Average Carried 15 | 3 9 18 23 27 27 8 7 7 6 7 7 8 8 8 7 6 7 7 7 7 7 7 7 6 7 7 7 Final Capacity 28 | 6 20 20 26 28 28 8 8 8 8 8 8 8 8 8 8 8 8 8 8 8 8 8 8 8 8 8 8 Final Carried 28 | 5 16 20 26 28 28 8 8 8 8 8 8 8 8 8 8 8 8 8 8 8 8 8 7 8 8 7 5 Class Distribution -------------------- 34% | Hauler-Mutant 13% | Hacker-Sprinter 10% | Wizard-Sprinter 8% | Scavenger-Mutant 6% | Hacker-Scout 6% | Sprinter 5% | Mutant Dominant Class ---------------- Mutant | -10/Materials Hauler-Mutant | -10/Mines Hauler-Mutant | -9/Materials Hauler-Mutant | -9/Storage Hauler-Mutant | -8/Materials Scavenger-Sprinter | -7/Factory Sprinter | -7/Lower Caves Sprinter | -7/Lower Caves Sprinter | -7/Data Miner Sprinter | -6/Proximity Caves Hacker-Sprinter | -6/Factory Hacker-Sprinter | -6/Lower Caves Hacker-Sprinter | -6/Lower Caves Hacker-Sprinter | -6/Zion Hacker-Sprinter | -5/Proximity Caves Hacker-Scout | -5/Factory Commander-Scout | -5/Extension Hacker-Scout | -4/Factory Hacker-Sprinter | -4/Armory Wizard-Mutant | -4/Lab Wizard-Ninja | -3/Research Wizard-Sprinter | -3/Quarantine Wizard-Sprinter | -3/Section 7 Wizard-Sprinter | -2/Research Wizard-Sprinter | -2/Testing Wizard-Sprinter | -1/Access Wizard-Sprinter | -1/Command Resources | -11 -10 -10 -9 -9 -8 -7 -7 -7 -7 -6 -6 -6 -6 -6 -5 -5 -5 -4 -4 -4 -3 -3 -3 -2 -2 -1 -1 ----------- Run | Scr Mat Min Mat Sto Mat Fac Low Low Dat Pro Fac Low Low Zio Pro Fac Ext Fac Arm Lab Res Qua Sec Res Tes Acc Com Matter Collected 4870 | 287 559 61 573 733 603 139 127 65 . 63 67 91 7 70 115 40 170 . 380 70 75 . 185 . 15 98 277 Remotely . | . . . . . . . . . . . . . . . . . . . . . . . . . . . . Salvage Created 7687 | 97 612 61 1474 1980 969 139 80 219 . 29 91 312 . . . 37 842 . 244 . 94 . 89 . . 98 220 Parts 389 | 2 31 . 89 118 50 1 . 11 . . 5 4 . . . 3 28 . 19 . 2 . 3 . . 12 11 Haulers Intercepted 13 | . 2 . 3 6 1 . . . . . 1 . . . . . . . . . . . . . . . . Recyclers Shooed 8 | 1 . . 2 2 . 2 . . . . . . . . . . 1 . . . . . . . . . . Parts Field Recycled . | . . . . . . . . . . . . . . . . . . . . . . . . . . . . Retrieved Matter . | . . . . . . . . . . . . . . . . . . . . . . . . . . . . Parts Self-Destructed 17 | . . . . . . . 1 3 . . . 1 . . 12 . . . . . . . . . . . . Prevented 1 | . . . . . . . . 1 . . . . . . . . . . . . . . . . . . . Kills | -11 -10 -10 -9 -9 -8 -7 -7 -7 -7 -6 -6 -6 -6 -6 -5 -5 -5 -4 -4 -4 -3 -3 -3 -2 -2 -1 -1 ------- Run | Scr Mat Min Mat Sto Mat Fac Low Low Dat Pro Fac Low Low Zio Pro Fac Ext Fac Arm Lab Res Qua Sec Res Tes Acc Com Combat Hostiles Destroyed 103 | . 9 2 24 29 22 . . 4 . . . 1 . . . . 6 . 1 . 1 . 1 . . 1 2 Melee 11 | . . . . . . . . 1 . . . 1 . . . . 4 . 1 . . . 1 . . 1 2 Guns 70 | . 7 1 20 21 21 . . . . . . . . . . . . . . . . . . . . . . Cannons 2 | . . . . 1 1 . . . . . . . . . . . . . . . . . . . . . . AOE 20 | . 2 1 4 7 . . . 3 . . . . . . . . 2 . . . 1 . . . . . . Classes Destroyed 18 | 2 5 . 4 3 1 . . . . 1 . 1 . . . . . . 1 . . . . . . . . Worker 9 | . . . 3 1 2 . . . . . . . . . . 2 . . . . . . . . . 1 . Builder 8 | . 2 . 1 2 1 . . . . . . . . . . . 1 . . . . . . . . 1 . Tunneler 1 | 1 . . . . . . . . . . . . . . . . . . . . . . . . . . . Hauler 13 | . 2 . 3 6 1 . . . . . 1 . . . . . . . . . . . . . . . . Recycler 16 | 1 2 . 4 2 2 2 . . . . . . . . . . 3 . . . . . . . . . . Mechanic 2 | . . . . 1 . . . . . . . . . . . . . . . . 1 . . . . . . Operator 8 | . . . 4 2 . . . . . . . . . . . . . . 2 . . . . . . . . Watcher 15 | . 2 . 5 1 3 . . . . . . . . . . . 2 . 1 . . . . . . . 1 Swarmer 27 | . 3 . 6 . 13 . . 3 . . . . . . . . 1 . 1 . . . . . . . . Grunt 38 | . 6 2 11 12 3 . . . . . . . . . . . 4 . . . . . . . . . . Brawler 3 | . . . . 3 . . . . . . . . . . . . . . . . . . . . . . . Duelist 3 | . . . 1 2 . . . . . . . . . . . . . . . . . . . . . . . Protector 2 | . . . . 2 . . . . . . . . . . . . . . . . . . . . . . . Sentry 25 | . . . 6 11 5 . . . . . . . . . . . 1 . . . . . 1 . . . 1 Hunter 2 | . . . . . 1 . . 1 . . . . . . . . . . . . . . . . . . . Programmer 2 | . . . . . . . . . . . . 1 . . . . . . . . . . . . . 1 . Behemoth 1 | . . . . . . . . . . . . . . . . . . . 1 . . . . . . . . Tracker 1 | . . . . . . . . . . . . . . . . . . . . . 1 . . . . . . Combat Programmer 1 | . . . . . . . . . . . . . . . . . . . . . . . . . . . 1 Decomposer 3 | . . . . . . . . 2 . . . 1 . . . . . . . . . . . . . . . Packrat 4 | . . . . . . . 1 . . . . 3 . . . . . . . . . . . . . . . Tinkerer 1 | . . . . . . . . . . 1 . . . . . . . . . . . . . . . . . Thug 2 | . . . . 2 . . . . . . . . . . . . . . . . . . . . . . . Best Kill Streak 21 | 2 5 2 10 9 21 1 . 4 . . 1 1 . . . 1 2 . 1 . 1 . 1 . . 1 1 Combat Bots Only 19 | . 4 2 5 8 19 . . 4 . . . 1 . . . . 2 . 1 . 1 . 1 . . 1 1 Max Kills in Single Turn 9 | 1 2 1 3 9 2 1 1 2 . 1 1 1 . . . 1 2 . 1 . 1 . 1 . . 1 1 Gunslinging 1 | . 1 . . 1 . . . . . . . . . . . . . . . . . . . . . . . Exploded 6 | . 2 1 2 6 . . . 2 . . . . . . . . 2 . . . 1 . . . . . . Melee 1 | . . . . . . . . 1 . . . 1 . . . . 1 . 1 . . . 1 . . 1 1 Uniques/NPCs Destroyed . | . . . . . . . . . . . . . . . . . . . . . . . . . . . . Combat | -11 -10 -10 -9 -9 -8 -7 -7 -7 -7 -6 -6 -6 -6 -6 -5 -5 -5 -4 -4 -4 -3 -3 -3 -2 -2 -1 -1 -------- Run | Scr Mat Min Mat Sto Mat Fac Low Low Dat Pro Fac Low Low Zio Pro Fac Ext Fac Arm Lab Res Qua Sec Res Tes Acc Com Damage Taken 8415 | . 332 86 911 971 684 17 55 243 . 88 61 168 9 . 25 . 591 103 291 77 727 268 621 48 125 154 1760 Core 1317 | . 73 31 157 149 80 . 55 61 . 36 . 15 . . . . 206 . 99 24 48 22 82 48 23 . 108 Absorbed by Shields 236 | . . . . . . . . . . . . . . . . . 148 . . . . . . . . . 88 Core Remaining (%) 79 | 100 . 58 . 23 85 . . . . 78 . . . . 98 . 79 . . 90 . . 88 . 95 . . Volleys Fired 384 | 10 34 5 93 97 59 . . 2 . . 4 . . . 21 . 8 4 9 . 19 3 . . 15 1 . Largest 2 | 2 2 2 2 2 2 . . 1 . . 1 . . . 1 . 1 1 1 . 1 1 . . 1 1 . Hottest 112 | 60 60 60 98 112 56 . . 36 . . 90 . . . 90 . 36 90 90 . 105 105 . . 105 105 . Shots Fired 663 | 20 67 8 178 190 114 . . 2 . . 4 . . . 21 . 8 4 9 . 19 3 . . 15 1 . Gun 563 | 20 67 6 176 183 110 . . . . . . . . . . . . . . . 1 . . . . . . Cannon 74 | . . . . 5 4 . . . . . 4 . . . 16 . . 4 9 . 13 3 . . 15 1 . Launcher 26 | . . 2 2 2 . . . 2 . . . . . . 5 . 8 . . . 5 . . . . . . Special . | . . . . . . . . . . . . . . . . . . . . . . . . . . . . Kinetic 401 | 10 34 3 130 114 110 . . . . . . . . . . . . . . . . . . . . . . Thermal 200 | 10 6 3 46 69 . . . . . . 4 . . . 16 . . 4 9 . 14 3 . . 15 1 . Explosive 11 | . . 2 2 2 . . . . . . . . . . . . . . . . 5 . . . . . . Electromagnetic 51 | . 27 . . 5 4 . . 2 . . . . . . 5 . 8 . . . . . . . . . . Robot Hit Streak 23 | 11 5 11 17 23 17 . . . . . . . . . . . . . . . 18 . . . . 19 . Robot Miss Streak 5 | 1 3 . 5 3 4 . . . . . . . . . . . . . . . . . . . . . . Penetration Max 1 | . . . . . 1 . . . . . . . . . . . . . . . . . . . . . . Secondary Targets 9 | . 2 . 3 1 3 . . . . . . . . . . . . . . . . . . . . . . Max Gunslinging Chain 1 | . 1 . 1 1 1 . . . . . . . . . . . . . . . . . . . . . . Shots Hit Robots 499 | 15 38 7 113 134 82 14 3 7 1 2 5 13 1 . . 2 14 . 11 1 4 . 11 . . 7 14 Core Hits 277 | 3 22 6 61 80 41 2 1 8 . 1 2 3 . . 1 2 20 . 5 . 6 . 3 . . 4 6 Critical Hits 13 | . . . 2 2 2 . . . . . . . . . . . . . . . . . 4 . . 3 . Critical Kills 3 | . . . . 1 . . . . . . . . . . . . . . . . . . 1 . . 1 . Critical Parts Destroyed 9 | . . . 2 1 2 . . . . . . . . . . . . . . . . . 2 . . 2 . Melee Attacks 322 | . . . . 1 . 36 33 9 7 9 13 16 2 7 . 6 28 7 50 5 5 7 15 . . 16 50 Impact . | . . . . . . . . . . . . . . . . . . . . . . . . . . . . Slashing 195 | . . . . 1 . 35 33 9 7 9 11 14 2 3 . 1 14 7 27 . . 7 15 . . . . Piercing 126 | . . . . . . . . . . . 2 2 . 4 . 5 14 . 23 5 5 . . . . 16 50 Sneak Attacks 38 | . . . . . . 5 1 2 1 2 3 4 1 . . 2 7 . 6 . 1 . . . . 2 1 Combat Hostiles 6 | . . . . . . . . . . . . . 1 . . . 3 . 2 . . . . . . . . Follow-up Attacks 12 | . . . . . . 1 . . . . 1 1 . . . . 2 . . . . . . . . 2 5 Damage Inflicted 18063 | 163 594 223 2479 3170 1878 826 187 707 156 305 441 835 126 . 57 262 1765 . 1028 64 454 . 913 . . 574 856 Guns 6474 | 163 456 78 1734 2259 1784 . . . . . . . . . . . . . . . . . . . . . . Cannons 217 | . . . . 85 94 . . . . . . . . . . . . . . . . . . . . 38 . Explosions 3021 | . 138 145 745 797 . . . 230 . . . . . . 57 . 587 . . . 322 . . . . . . Melee 8322 | . . . . . . 826 187 477 156 305 441 835 126 . . 262 1178 . 1028 64 132 . 913 . . 536 856 Ramming 29 | . . . . 29 . . . . . . . . . . . . . . . . . . . . . . . Kinetic 4616 | 73 216 47 1184 1312 1784 . . . . . . . . . . . . . . . . . . . . . . Thermal 2487 | 90 195 31 1114 947 . . . 72 . . . . . . . . . . . . . . . . . 38 . Explosive 1445 | . . 145 181 797 . . . . . . . . . . . . . . . . 322 . . . . . . Electromagnetic 1164 | . 183 . . 85 94 . . 158 . . . . . . 57 . 587 . . . . . . . . . . Impact . | . . . . . . . . . . . . . . . . . . . . . . . . . . . . Slashing 4746 | . . . . . . 826 187 477 156 305 270 805 126 . . . 298 . 383 . . . 913 . . . . Piercing 3576 | . . . . . . . . . . . 171 30 . . . 262 880 . 645 64 132 . . . . 536 856 Highest Corruption 15 | . . . . . 1 . . . . . 1 3 3 3 . . . . . 1 6 6 7 . . 1 15 Average Corruption 2 | . . . . . 1 . . . . . 1 2 3 3 . . . . . 1 1 6 6 . . 1 1 Corruption Purged . | . . . . . . . . . . . . . . . . . . . . . . . . . . . . Effects 31 | . . . . . 3 . . . . . . 6 3 1 . . . . . . 2 2 9 . . . 5 Message Errors 8 | . . . . . 1 . . . . . . 2 1 . . . . . . . 1 1 1 . . . 1 Matter Fused 3 | . . . . . . . . . . . . 2 1 . . . . . . . . . . . . . . Heat Flow Errors 4 | . . . . . . . . . . . . 2 1 . . . . . . . . . 1 . . . . Energy Discharges 3 | . . . . . . . . . . . . . . . . . . . . . . . 3 . . . . Parts Rejected 1 | . . . . . . . . . . . . . . . . . . . . . 1 . . . . . . Data Loss (minor) 5 | . . . . . 2 . . . . . . . . 1 . . . . . . . . . . . . 2 Data Loss (major) 2 | . . . . . . . . . . . . . . . . . . . . . . . 2 . . . . Targeting Errors 5 | . . . . . . . . . . . . . . . . . . . . . . 1 2 . . . 2 Overload Shots . | . . . . . . . . . . . . . . . . . . . . . . . . . . . . Overflow Damage 1651 | . 12 2 223 . . 253 117 34 96 99 121 271 60 . . . 161 . 156 . 21 . . . . . 25 Projectiles . | . . . . . . . . . . . . . . . . . . . . . . . . . . . . Explosions 275 | . 12 2 223 . . . . . . . . . . . . . 17 . . . 21 . . . . . . Melee 1376 | . . . . . . 253 117 34 96 99 121 271 60 . . . 144 . 156 . . . . . . . 25 Knockbacks . | . . . . . . . . . . . . . . . . . . . . . . . . . . . . Impact . | . . . . . . . . . . . . . . . . . . . . . . . . . . . . Kinetic . | . . . . . . . . . . . . . . . . . . . . . . . . . . . . Secondary . | . . . . . . . . . . . . . . . . . . . . . . . . . . . . Self-Inflicted Damage 92 | . 48 10 . . . . . 15 . . . . . . . . 19 . . . . . . . . . . Shots 4 | . 1 1 . . . . . 1 . . . . . . . . 1 . . . . . . . . . . Rammed 2 | . . . . 2 . . . . . . . . . . . . . . . . . . . . . . . Targets Rammed 2 | . . . . 2 . . . . . . . . . . . . . . . . . . . . . . . Kicked . | . . . . . . . . . . . . . . . . . . . . . . . . . . . . Crushed . | . . . . . . . . . . . . . . . . . . . . . . . . . . . . Highest Temperature 288 | . 24 4 264 204 29 171 196 139 78 210 120 256 288 179 206 12 43 144 283 135 91 . 169 . 82 20 . Average Temperature 58 | . 16 4 58 52 8 58 65 62 36 68 28 69 76 70 78 4 8 66 79 63 26 . 100 . 29 15 . Received Heat Transfer 1321 | . 102 42 336 360 153 . . . . 12 12 . . . . . 103 18 18 . . 48 81 . . . 36 Siege Activations . | . . . . . . . . . . . . . . . . . . . . . . . . . . . . Robots Corrupted . | . . . . . . . . . . . . . . . . . . . . . . . . . . . . Combat Hostiles . | . . . . . . . . . . . . . . . . . . . . . . . . . . . . Parts Fried . | . . . . . . . . . . . . . . . . . . . . . . . . . . . . Impact Corruptions . | . . . . . . . . . . . . . . . . . . . . . . . . . . . . Robots Melted . | . . . . . . . . . . . . . . . . . . . . . . . . . . . . Combat Hostiles . | . . . . . . . . . . . . . . . . . . . . . . . . . . . . Parts Melted 5 | 1 1 . 2 1 . . . . . . . . . . . . . . . . . . . . . . . Heat Transferred 3683 | 200 275 75 1390 1656 . . . 50 . . . . . . . . . . . . . . . . . 37 . Parts Sabotaged . | . . . . . . . . . . . . . . . . . . . . . . . . . . . . Parts Stolen . | . . . . . . . . . . . . . . . . . . . . . . . . . . . . Parts Stripped . | . . . . . . . . . . . . . . . . . . . . . . . . . . . . Power Chain Reactions 3 | . 1 . . . . . . 2 . . . . . . . . . . . . . . . . . . . Missiles Intercepted . | . . . . . . . . . . . . . . . . . . . . . . . . . . . . Alert | -11 -10 -10 -9 -9 -8 -7 -7 -7 -7 -6 -6 -6 -6 -6 -5 -5 -5 -4 -4 -4 -3 -3 -3 -2 -2 -1 -1 ------- Run | Scr Mat Min Mat Sto Mat Fac Low Low Dat Pro Fac Low Low Zio Pro Fac Ext Fac Arm Lab Res Qua Sec Res Tes Acc Com Peak Influence 1192 | 10 234 82 384 538 753 332 . . . . 87 . . . . 402 1192 673 992 . 172 186 161 94 189 561 305 Initial 581 | . 6 32 31 111 226 226 . . . . . . . . . . 196 581 329 . . 96 104 84 52 112 48 Average 310 | 3 105 80 218 362 519 271 . . . . 54 . . . . 124 826 607 595 . 55 137 126 89 61 201 136 Maximum Alert Level 4 | . 1 . 1 2 3 1 . . . . . . . . . 2 4 2 3 . . . . . . 2 1 Low Security (%) 39 | 100 88 100 38 10 . . . . . . 100 . . . . 85 . . . . 100 100 100 100 100 83 85 Level 1 28 | . 11 . 61 38 33 100 . . . . . . . . . . 17 . 9 . . . . . . 2 14 Level 2 24 | . . . . 51 44 . . . . . . . . . . 14 10 100 70 . . . . . . 13 . Level 3 6 | . . . . . 21 . . . . . . . . . . . 64 . 20 . . . . . . . . Level 4 . | . . . . . . . . . . . . . . . . . 7 . . . . . . . . . . Level 5 . | . . . . . . . . . . . . . . . . . . . . . . . . . . . . High Security . | . . . . . . . . . . . . . . . . . . . . . . . . . . . . Max Security . | . . . . . . . . . . . . . . . . . . . . . . . . . . . . Squads Dispatched 48 | . 2 . 6 8 4 2 . . . . 1 . . . . 1 3 1 7 . 3 . 1 . 7 2 . Investigation 16 | . 2 . 3 2 . 1 . . . . 1 . . . . 1 1 1 1 . 1 . . . 1 1 . Extermination 4 | . . . . . . . . . . . . . . . . . . . 2 . . . 1 . 1 . . Reinforcement 16 | . . . 3 2 2 1 . . . . . . . . . . 1 . 2 . . . . . 5 . . Assault 7 | . . . . 2 2 . . . . . . . . . . . 1 . 2 . . . . . . . . Garrison 3 | . . . . 2 . . . . . . . . . . . . . . . . . . . . . 1 . Intercept 2 | . . . . . . . . . . . . . . . . . . . . . 2 . . . . . . Construction Impeded 1 | . . . . . . . . . . . . . . . . . 1 . . . . . . . . . . Haulers Reinforced . | . . . . . . . . . . . . . . . . . . . . . . . . . . . . Stealth | -11 -10 -10 -9 -9 -8 -7 -7 -7 -7 -6 -6 -6 -6 -6 -5 -5 -5 -4 -4 -4 -3 -3 -3 -2 -2 -1 -1 --------- Run | Scr Mat Min Mat Sto Mat Fac Low Low Dat Pro Fac Low Low Zio Pro Fac Ext Fac Arm Lab Res Qua Sec Res Tes Acc Com Distress Signals 13 | . . . 3 4 . 1 . . . . . . . . . . . 1 1 . . . . . 3 . . Communications Jammed 9 | . . . . . . . . . . . . . . . . . . . . . . . 2 . 1 4 2 Distress Signals 8 | . . . . . . . . . . . . . . . . . . . . . . . 2 . 1 3 2 Times Spotted 297 | . 12 2 40 48 40 8 1 4 4 1 1 1 1 . 1 3 40 11 24 1 6 4 6 . 14 13 11 Peak Tracking Total 13 | . 4 2 3 9 13 3 1 4 4 1 1 1 1 . 1 1 8 13 5 1 9 4 3 . 9 6 4 Tactical Retreats 18 | . 1 . 2 2 . 1 . . . . . . . . . . . 1 3 . 2 1 . . 1 3 1 Traps | -11 -10 -10 -9 -9 -8 -7 -7 -7 -7 -6 -6 -6 -6 -6 -5 -5 -5 -4 -4 -4 -3 -3 -3 -2 -2 -1 -1 ------- Run | Scr Mat Min Mat Sto Mat Fac Low Low Dat Pro Fac Low Low Zio Pro Fac Ext Fac Arm Lab Res Qua Sec Res Tes Acc Com Traps Triggered 10 | . 1 . . 5 1 . . . . . 1 . . . . . 1 . . . . . . 1 . . . Indirectly 1 | . . . . . . . . . . . . . . . . . 1 . . . . . . . . . . Trap Hack Attempts . | . . . . . . . . . . . . . . . . . . . . . . . . . . . . Triggered . | . . . . . . . . . . . . . . . . . . . . . . . . . . . . Disarmed . | . . . . . . . . . . . . . . . . . . . . . . . . . . . . Reprogrammed 12 | . . . . . . . . . . . . . . . . . . . . . . . 6 . 6 . . Reused 3 | . . . . . . . . . . . . . . . . . . . . . . . 2 . 1 . . Traps Extracted . | . . . . . . . . . . . . . . . . . . . . . . . . . . . . Installed . | . . . . . . . . . . . . . . . . . . . . . . . . . . . . Triggered 5 | . . . . . . . . . . 1 . . 1 . . . . . . . . . 2 . 1 . . Machines | -11 -10 -10 -9 -9 -8 -7 -7 -7 -7 -6 -6 -6 -6 -6 -5 -5 -5 -4 -4 -4 -3 -3 -3 -2 -2 -1 -1 ---------- Run | Scr Mat Min Mat Sto Mat Fac Low Low Dat Pro Fac Low Low Zio Pro Fac Ext Fac Arm Lab Res Qua Sec Res Tes Acc Com Machines Disabled 40 | . 2 . 5 7 2 . . . . 1 . . . . . . 3 1 6 1 1 4 . . 5 1 1 Max in Single Turn 3 | . 1 . 3 1 1 . . . . 1 . . . . . . 1 1 1 1 1 1 . . 1 1 1 Garrison Access 2 | . . . . . 1 . . . . . 1 . . . . . . . . . . . . . . . . Machines Sabotaged . | . . . . . . . . . . . . . . . . . . . . . . . . . . . . Garrisons Compromised . | . . . . . . . . . . . . . . . . . . . . . . . . . . . . Overloaded Fab Kills . | . . . . . . . . . . . . . . . . . . . . . . . . . . . . Fab Network Shutdowns 2 | . . . . . . . . . . . . . . . . 1 . . . . . . . . . 1 . Hacking | -11 -10 -10 -9 -9 -8 -7 -7 -7 -7 -6 -6 -6 -6 -6 -5 -5 -5 -4 -4 -4 -3 -3 -3 -2 -2 -1 -1 --------- Run | Scr Mat Min Mat Sto Mat Fac Low Low Dat Pro Fac Low Low Zio Pro Fac Ext Fac Arm Lab Res Qua Sec Res Tes Acc Com Machines Accessed 89 | . 5 1 7 11 3 6 . . 3 . 6 . . . 1 3 4 4 6 1 4 1 2 1 9 6 5 Terminals 58 | . 4 . 4 8 2 5 . . . . 3 . . . 1 2 4 3 2 . 2 1 1 1 6 4 5 Fabricators 9 | . . . . . . . . . . . 1 . . . . 1 . 1 3 . 1 . . . 1 1 . Repair Stations 5 | . . . 1 2 . . . . . . . . . . . . . . . . 1 . . . 1 . . Recycling Units 4 | . 1 . 1 1 . . . . . . . . . . . . . . 1 . . . . . . . . Scanalyzers 3 | . . . 1 . . 1 . . . . . . . . . . . . . . . . 1 . . . . Garrison Access 5 | . . . . . 1 . . . . . 2 . . . . . . . . . . . . . 1 1 . Total Hacks 268 | . 17 1 27 30 6 18 . . 23 . 17 . . . 1 7 6 9 24 2 13 2 4 2 26 19 14 Successful 185 | . 10 1 16 13 1 6 . . 23 . 13 . . . 1 7 4 6 22 2 9 . 4 1 21 17 8 Failed 81 | . 7 . 11 17 5 12 . . . . 4 . . . . . 2 3 2 . 4 2 . 1 4 1 6 Catastrophic 6 | . . . 1 . 2 2 . . . . . . . . . . . 1 . . . . . . . . . Database Lockouts 2 | . . . . . . . . . . . . . . . . . . . . . . . . . 1 1 . Manual 126 | . 15 . 6 14 4 12 . . . . 7 . . . . 2 1 6 8 . 5 2 1 2 16 11 14 Terminals 157 | . 14 . 9 24 3 16 . . . . 9 . . . 1 4 6 7 5 . 6 2 2 2 19 14 14 Fabricators 38 | . . . . . . . . . . . 4 . . . . 3 . 2 18 . 3 . . . 4 4 . Repair Stations 15 | . . . 5 4 . . . . . . . . . . . . . . . . 4 . . . 2 . . Recycling Units 10 | . 3 . 4 2 . . . . . . . . . . . . . . 1 . . . . . . . . Scanalyzers 13 | . . . 9 . . 2 . . . . . . . . . . . . . . . . 2 . . . . Garrison Access 9 | . . . . . 3 . . . . . 4 . . . . . . . . . . . . . 1 1 . Terminal Hacks 75 | . 2 1 1 4 . 3 . . 23 . 5 . . . 1 3 3 1 1 2 3 . 1 1 8 11 1 Record 14 | . . . . . . . . . 11 . . . . . 1 . . . . 2 . . . . . . . Part Schematic 19 | . 2 . . . . 1 . . 9 . 1 . . . . 1 . 1 . . 2 . . . 2 . . Robot Schematic 1 | . . . . . . . . . . . 1 . . . . . . . . . . . . . . . . Prototype ID Bank 4 | . . . . . . . . . 3 . . . . . . . . . . . . . . . . 1 . Open Door 10 | . . 1 . 1 . . . . . . . . . . . 1 3 . . . 1 . . . . 3 . Branch Access Points 2 | . . . . . . . . . . . 1 . . . . . . . . . . . . 1 . . . Terminal Index 1 | . . . . . . 1 . . . . . . . . . . . . . . . . . . . . . Alert Level 1 | . . . . 1 . . . . . . . . . . . . . . . . . . . . . . . Unreport Threat 10 | . . . 1 1 . . . . . . . . . . . . . . . . . . . . 2 5 1 Locate Traps 2 | . . . . . . . . . . . 2 . . . . . . . . . . . . . . . . Reprogram Traps 2 | . . . . . . . . . . . . . . . . . . . . . . . 1 . 1 . . Recall Investigation 2 | . . . . . . . . . . . . . . . . 1 . . . . . . . . 1 . . Hauler Manifests 1 | . . . . . . 1 . . . . . . . . . . . . . . . . . . . . . Registered Components 3 | . . . . . . . . . . . . . . . . . . . 1 . . . . . 1 1 . Registered Prototypes 1 | . . . . . . . . . . . . . . . . . . . . . . . . . . 1 . Zone Layout 2 | . . . . 1 . . . . . . . . . . . . . . . . . . . . 1 . . Fabricator Hacks 32 | . . . . . . . . . . . 4 . . . . 3 . 2 13 . 2 . . . 4 4 . Load Schematic 11 | . . . . . . . . . . . 2 . . . . 1 . 1 3 . 1 . . . 2 1 . Build 21 | . . . . . . . . . . . 2 . . . . 2 . 1 10 . 1 . . . 2 3 . Repair Station Hacks 12 | . . . 3 4 . . . . . . . . . . . . . . . . 3 . . . 2 . . Scan Component 4 | . . . 2 2 . . . . . . . . . . . . . . . . . . . . . . . Repair 3 | . . . 1 2 . . . . . . . . . . . . . . . . . . . . . . . Refit 5 | . . . . . . . . . . . . . . . . . . . . . 3 . . . 2 . . Recycling Unit Hacks 6 | . 1 . 2 2 . . . . . . . . . . . . . . 1 . . . . . . . . Retrieve Components 6 | . 1 . 2 2 . . . . . . . . . . . . . . 1 . . . . . . . . Scanalyzer 11 | . . . 9 . . . . . . . . . . . . . . . . . . . 2 . . . . Insert Component 6 | . . . 4 . . . . . . . . . . . . . . . . . . . 2 . . . . Analyze 5 | . . . 5 . . . . . . . . . . . . . . . . . . . . . . . . Garrison Access Hacks 2 | . . . . . 1 . . . . . 1 . . . . . . . . . . . . . . . . Seal Access 2 | . . . . . 1 . . . . . 1 . . . . . . . . . . . . . . . . Unauthorized Hacks 47 | . 7 . 1 3 . 3 . . . . 3 . . . . 1 1 3 7 . 1 . 1 . 7 2 7 Terminals 39 | . 6 . 1 3 . 3 . . . . 2 . . . . 1 1 3 3 . 1 . 1 . 6 1 7 Track 14 | . 3 . 1 2 . . . . . . . . . . . . . 1 1 . . . . . 3 . 3 Assimilate 10 | . . . . . . 1 . . . . . . . . . 1 . 1 1 . . . 1 . 2 1 2 Botnet 13 | . 2 . . 1 . 1 . . . . 2 . . . . . 1 1 1 . 1 . . . 1 . 2 Operators 2 | . 1 . . . . 1 . . . . . . . . . . . . . . . . . . . . . Fabricators 4 | . . . . . . . . . . . . . . . . . . . 4 . . . . . . . . Report 1 | . . . . . . . . . . . . . . . . . . . 1 . . . . . . . . Prioritize 2 | . . . . . . . . . . . . . . . . . . . 2 . . . . . . . . Siphon 1 | . . . . . . . . . . . . . . . . . . . 1 . . . . . . . . Repair Stations . | . . . . . . . . . . . . . . . . . . . . . . . . . . . . Recycling Units 1 | . 1 . . . . . . . . . . . . . . . . . . . . . . . . . . Tunnel 1 | . 1 . . . . . . . . . . . . . . . . . . . . . . . . . . Scanalyzers . | . . . . . . . . . . . . . . . . . . . . . . . . . . . . Garrison Access 3 | . . . . . . . . . . . 1 . . . . . . . . . . . . . 1 1 . Reprogram 3 | . . . . . . . . . . . 1 . . . . . . . . . . . . . 1 1 . Data Cores Recovered . | . . . . . . . . . . . . . . . . . . . . . . . . . . . . Used . | . . . . . . . . . . . . . . . . . . . . . . . . . . . . Hacking Detections 68 | . 4 . 7 10 3 6 . . . . 5 . . . . 3 1 4 3 . 3 1 2 1 6 4 5 Full Trace Events 14 | . 1 . 2 2 . 1 . . . . 1 . . . . 1 1 1 1 . 1 . . . 1 1 . Feedback Events 2 | . . . . . . . . . . . 1 . . . . . . . . . 1 . . . . . . Corruption 2 | . . . . . . . . . . . 1 . . . . . . . . . 1 . . . . . . Feedback Blocked . | . . . . . . . . . . . . . . . . . . . . . . . . . . . . Robot Schematics Acquired 1 | . . . . . . . . . . . 1 . . . . . . . . . . . . . . . . Robots Built 12 | . . . . . . . . . . . . . . . . . . . 12 . . . . . . . . Matter 1743 | . . . . . . . . . . . . . . . . . . . 1743 . . . . . . . . Time 540 | . . . . . . . . . . . . . . . . . . . 540 . . . . . . . . Total Robot Build Rating 62 | . . . . . . . . . . . . . . . . . . . 62 . . . . . . . . Part Schematics Acquired 23 | . 2 . 4 . . 1 . . 9 . 1 . . . . 1 . 1 . . 2 . . . 2 . . Parts Built 16 | . . . . . . . . . . . 2 . . . . 2 . 2 4 . 1 . . . 2 3 . Matter 4240 | . . . . . . . . . . . 570 . . . . 636 . 146 888 . 318 . . . 629 1053 . Time 1188 | . . . . . . . . . . . 100 . . . . 338 . 36 310 . 56 . . . 162 186 . Total Part Build Rating 92 | . . . . . . . . . . . 10 . . . . 12 . 6 21 . 6 . . . 16 21 . Parts Repaired 3 | . . . 1 2 . . . . . . . . . . . . . . . . . . . . . . . Time 176 | . . . 70 106 . . . . . . . . . . . . . . . . . . . . . . . Parts Recycled . | . . . . . . . . . . . . . . . . . . . . . . . . . . . . Recycled Matter . | . . . . . . . . . . . . . . . . . . . . . . . . . . . . Retrieved Matter . | . . . . . . . . . . . . . . . . . . . . . . . . . . . . Retrieved Components 38 | . 9 . 13 15 . . . . . . . . . . . . . . 1 . . . . . . . . Parts Scanalyzed 4 | . . . 4 . . . . . . . . . . . . . . . . . . . . . . . . Part Schematics Acquired 4 | . . . 4 . . . . . . . . . . . . . . . . . . . . . . . . Parts Damaged 1 | . . . 1 . . . . . . . . . . . . . . . . . . . . . . . . Bothacking | -11 -10 -10 -9 -9 -8 -7 -7 -7 -7 -6 -6 -6 -6 -6 -5 -5 -5 -4 -4 -4 -3 -3 -3 -2 -2 -1 -1 ------------ Run | Scr Mat Min Mat Sto Mat Fac Low Low Dat Pro Fac Low Low Zio Pro Fac Ext Fac Arm Lab Res Qua Sec Res Tes Acc Com Used RIF Installer . | . . . . . . . . . . . . . . . . . . . . . . . . . . . . Robots Hacked . | . . . . . . . . . . . . . . . . . . . . . . . . . . . . Non-combat . | . . . . . . . . . . . . . . . . . . . . . . . . . . . . Combat . | . . . . . . . . . . . . . . . . . . . . . . . . . . . . Robot Hacks Applied . | . . . . . . . . . . . . . . . . . . . . . . . . . . . . Relay Couplers Released . | . . . . . . . . . . . . . . . . . . . . . . . . . . . . Robots Rewired 20 | . . . . . . . . . . . . . . . . 2 13 . 5 . . . . . . . . Allies Hacked 1 | . . . . . . . . . . . . . . . . . . . . . . . . . 1 . . Hacks Repelled . | . . . . . . . . . . . . . . . . . . . . . . . . . . . . Allies | -11 -10 -10 -9 -9 -8 -7 -7 -7 -7 -6 -6 -6 -6 -6 -5 -5 -5 -4 -4 -4 -3 -3 -3 -2 -2 -1 -1 -------- Run | Scr Mat Min Mat Sto Mat Fac Low Low Dat Pro Fac Low Low Zio Pro Fac Ext Fac Arm Lab Res Qua Sec Res Tes Acc Com Total Allies 70 | . . . . 12 . 1 . . . . . . . 9 . 3 15 1 18 . . . 1 . 5 3 2 Largest Group 16 | . . . . 10 . 1 . . . . . . . 9 9 8 16 1 11 5 . . 1 . 4 2 2 Highest-Rated Group 574 | . . . . 88 . 10 . . . . . . . 251 251 249 574 10 438 189 . . 44 . 280 138 88 Highest-Rated Ally 156 | . . . . 31 . 10 . . . . . . . 32 32 43 156 10 115 41 . . 44 . 90 69 44 Total Orders 3 | . . . . . . . . . . . . . . . . . . . . 1 . . . . . 2 . STAY 2 | . . . . . . . . . . . . . . . . . . . . 1 . . . . . 1 . FOLLOW 1 | . . . . . . . . . . . . . . . . . . . . . . . . . . 1 . Ally Attacks 507 | . . . . 81 . . . . . . . . . . 69 20 204 . 108 4 . . . . 14 7 . Total Damage 10371 | . . . . 841 . . . . . . . . . . 994 463 4018 . 3267 122 . . . . 513 153 . Kills 81 | . . . . 11 . . . . . . . . . . 9 1 34 . 23 . . . . . 3 . . Allies Corrupted 3 | . . . . . . . . . . . . . . . . . . . 2 1 . . . . . . . Allies Melted . | . . . . . . . . . . . . . . . . . . . . . . . . . . . . Intel | -11 -10 -10 -9 -9 -8 -7 -7 -7 -7 -6 -6 -6 -6 -6 -5 -5 -5 -4 -4 -4 -3 -3 -3 -2 -2 -1 -1 ------- Run | Scr Mat Min Mat Sto Mat Fac Low Low Dat Pro Fac Low Low Zio Pro Fac Ext Fac Arm Lab Res Qua Sec Res Tes Acc Com Robot Analysis Total 115 | . . . . . . . . . 115 . . . . . . . . . . . . . . . . . . Derelict Logs Recovered 8 | . . 1 . . . . 2 . . 2 . . 1 1 1 . . . . . . . . . . . . Drone Launches . | . . . . . . . . . . . . . . . . . . . . . . . . . . . . Drone Recoveries . | . . . . . . . . . . . . . . . . . . . . . . . . . . . . Exploration | -11 -10 -10 -9 -9 -8 -7 -7 -7 -7 -6 -6 -6 -6 -6 -5 -5 -5 -4 -4 -4 -3 -3 -3 -2 -2 -1 -1 ------------- Run | Scr Mat Min Mat Sto Mat Fac Low Low Dat Pro Fac Low Low Zio Pro Fac Ext Fac Arm Lab Res Qua Sec Res Tes Acc Com Turns Passed 14599 | 110 883 340 2139 2576 1230 370 446 155 85 187 306 258 136 582 449 474 543 201 1001 196 228 134 255 38 312 479 486 Spaces Moved 15030 | 44 430 174 975 1187 374 966 910 425 185 367 557 288 487 1414 753 420 814 287 820 192 423 387 205 146 507 302 991 Core 3 | 3 . . . . . . . . . . . . . . . . . . . . . . . . . . . Treads 3181 | 41 430 174 975 1187 374 . . . . . . . . . . . . . . . . . . . . . . Legs . | . . . . . . . . . . . . . . . . . . . . . . . . . . . . Wheels . | . . . . . . . . . . . . . . . . . . . . . . . . . . . . Hover . | . . . . . . . . . . . . . . . . . . . . . . . . . . . . Flight 11846 | . . . . . . 966 910 425 185 367 557 288 487 1414 753 420 814 287 820 192 423 387 205 146 507 302 991 Fastest Speed 20 | 50 160 180 180 180 180 23 23 23 23 23 23 23 23 23 23 23 21 21 23 24 22 22 22 23 20 20 20 Average Speed 56 | 152 173 180 180 180 180 23 23 24 23 23 23 24 23 23 25 23 23 21 23 74 24 22 27 23 22 20 23 Slowest Speed 200 | 160 180 180 200 200 180 93 23 96 24 23 23 93 23 23 93 23 95 23 24 104 27 106 40 23 108 103 185 Overloaded Moves . | . . . . . . . . . . . . . . . . . . . . . . . . . . . . Propulsion Burnouts . | . . . . . . . . . . . . . . . . . . . . . . . . . . . . Robots Hopped 13 | . . . . . . 4 . 2 . . 3 . . . . . . . . . . 1 3 . . . . Cave-ins Triggered . | . . . . . . . . . . . . . . . . . . . . . . . . . . . . Teleports 1 | . . . . . . . . . . . . . . . . . . . . 1 . . . . . . . Exploration Rate (%) 44 | 3 65 35 71 88 40 21 84 57 78 53 17 43 55 86 84 6 53 14 36 94 12 51 11 6 52 7 30 Regions Visited 27 Branch Regions 17 Pre-discovered Areas 27 | . 1 . . . . . 1 . 22 1 . . . 2 . . . . . . . . . . . . . Known Exits Taken 21 | . . . . . . 1 1 1 1 1 1 1 1 1 1 1 1 1 1 1 1 1 1 1 1 1 . Unknown Exits Taken 6 | 1 1 1 1 1 1 . . . . . . . . . . . . . . . . . . . . . . Scrap Searched 25 | . . 1 . . . . 7 1 . 2 . 3 5 4 2 . . . . . . . . . . . . Spaces Dug 187 | . . . . . . 15 29 11 1 4 9 . . 1 6 2 5 7 23 . 35 4 4 . 8 5 18 Terrain Destroyed 382 | . 4 17 27 82 . 15 29 11 1 4 12 . . 1 16 2 5 10 29 . 74 5 4 . 11 5 18 Melee 127 | . . . . . . 15 29 1 1 4 8 . . 1 . 2 5 7 21 . 3 3 4 . . 5 18 Projectile 56 | . . . . . . . . . . . 4 . . . 16 . . 3 8 . 12 2 . . 11 . . AOE 199 | . 4 17 27 82 . . . 10 . . . . . . . . . . . . 59 . . . . . . Terrain Rammed . | . . . . . . . . . . . . . . . . . . . . . . . . . . . . Walls Destroyed . | . . . . . . . . . . . . . . . . . . . . . . . . . . . . Machines Disabled . | . . . . . . . . . . . . . . . . . . . . . . . . . . . . Actions | -11 -10 -10 -9 -9 -8 -7 -7 -7 -7 -6 -6 -6 -6 -6 -5 -5 -5 -4 -4 -4 -3 -3 -3 -2 -2 -1 -1 --------- Run | Scr Mat Min Mat Sto Mat Fac Low Low Dat Pro Fac Low Low Zio Pro Fac Ext Fac Arm Lab Res Qua Sec Res Tes Acc Com Total 19959 | 64 499 194 1184 1437 829 1067 1094 457 213 456 707 451 508 1662 987 786 1115 414 1548 234 520 417 370 149 695 702 1200 Wait 3590 | . 18 . 62 67 352 32 138 18 11 75 103 145 18 227 198 351 209 100 617 13 36 2 141 . 139 363 155 Move 14979 | 43 429 173 974 1186 373 957 909 421 184 366 551 287 486 1413 752 419 813 286 819 191 422 384 198 145 506 301 991 Hop 11 | . . . . . . 4 . 1 . . 2 . . . . . . . . . . 1 3 . . . . Pick Up 139 | 5 11 8 20 18 9 2 2 . 2 2 6 . 1 1 3 2 3 2 4 3 10 4 1 1 5 8 6 Fast Attach 88 | 6 2 1 6 7 5 5 2 1 . . 2 2 . 6 1 2 3 1 3 10 3 2 3 1 10 3 1 Attach 68 | . 1 1 4 1 4 10 . 1 1 2 3 . . . 1 2 2 5 7 2 6 4 1 1 3 2 4 Detach 19 | . . . . . . 2 . 1 1 . . . . . . . 1 3 4 . 1 2 . 1 2 1 . Swap 125 | . 3 2 8 24 11 2 6 3 6 2 2 2 . 1 7 . 10 4 18 . 4 3 2 . . 2 3 Drop 195 | . 1 4 17 30 16 21 4 . 2 2 4 1 1 8 4 2 2 2 8 10 14 5 6 . 15 10 6 Fire 384 | 10 34 5 93 97 59 . . 2 . . 4 . . . 21 . 8 4 9 . 19 3 . . 15 1 . Melee 282 | . . . . 1 . 32 33 9 6 7 12 14 2 6 . 5 23 7 48 5 5 7 15 . . 11 34 Ram . | . . . . . . . . . . . . . . . . . . . . . . . . . . . . Kick . | . . . . . . . . . . . . . . . . . . . . . . . . . . . . Crush 2 | . . . . 2 . . . . . . . . . . . . . . . . . . . . . . . Escape Stasis 22 | . . . . 4 . . . . . . 18 . . . . . . . . . . . . . . . . Rewire 55 | . . . . . . . . . . . . . . . . 3 41 . 11 . . . . . . . . Trap . | . . . . . . . . . . . . . . . . . . . . . . . . . . . . Miscellaneous . | . . . . . . . . . . . . . . . . . . . . . . . . . . . . Route ------- -11/Scrapyard -10/Materials (discovered 4 exits: *Mat x2 / *Min x2) -10/Mines -9/Materials (discovered 5 exits: *Mat x2 / [*Min] / *Sto x2) -9/Storage -8/Materials -7/Factory (discovered 2 exits: *Fac / *Low) -7/Lower Caves -7/Lower Caves -7/Data Miner -6/Proximity Caves -6/Factory (discovered 3 exits: Fac / *Low x2) -6/Lower Caves -6/Lower Caves -6/Zion -5/Proximity Caves -5/Factory (discovered 4 exits: Fac / [Upp] / *Ext x2) -5/Extension -4/Factory (discovered 2 exits: [Upp] / *Arm) -4/Armory (discovered 3 exits: Res x2 / *Lab) -4/Lab -3/Research -3/Quarantine (discovered 2 exits: *Res / *Sec) -3/Section 7 -2/Research (discovered 2 exits: *Tes x2) -2/Testing -1/Access -1/Command History --------- Turn | Location | Event 2 | -11/Scrapyard | Met Revision 17 37 | -11/Scrapyard | Discovered new exit (range 16) 111 | -11/Scrapyard | Entered Materials 170 | -10/Materials | Discovered new exit (range 11) 225 | -10/Materials | Discovered new exit (range 5) 307 | -10/Materials | Build established: Mutant 363 | -10/Materials | Discovered new exit (range 16) 779 | -10/Materials | Discovered new exit (range 11) 994 | -10/Materials | Entered Mines 1039 | -10/Mines | Met a Derelict bent on vengeance 1086 | -10/Mines | Learned Materials garrison access intel 1099 | -10/Mines | Met a Derelict who couldn't figure out how to use a Trap Extractor 1173 | -10/Mines | Found a damaged Exp. Sensor Array with a note attached 1177 | -10/Mines | Found Prototype Device 1194 | -10/Mines | Discovered new exit (range 7) 1198 | -10/Mines | Build established: Hauler-Mutant 1334 | -10/Mines | Entered Materials 1334 | -9/Materials | Evolved 2 slots: Propulsion x1, Utility x1 1524 | -9/Materials | Discovered new exit (range 9) 1718 | -9/Materials | Identified Exp. Sensor Array 1907 | -9/Materials | Repaired Broken Lgt. Angular Momentum Engine 2074 | -9/Materials | Discovered new exit (range 8) 2541 | -9/Materials | Discovered new exit (range 16) 2849 | -9/Materials | Build established: Scavenger-Mutant 3148 | -9/Materials | Discovered new exit (range 3) 3271 | -9/Materials | Discovered new exit (range 11) 3473 | -9/Materials | Entered Storage 3642 | -9/Storage | Assisted by bots powering up and referring to "LRC-V3" 3792 | -9/Storage | Found Prototype Launcher 3792 | -9/Storage | Identified Scatter Rocket Array 4027 | -9/Storage | Repaired Lgt. Treads 4048 | -9/Storage | Build established: Hauler-Mutant 4072 | -9/Storage | Repaired Exp. Sensor Array 4394 | -9/Storage | Met a pair of Derelict thieves 4462 | -9/Storage | Core integrity fell below 50% 4486 | -9/Storage | Destroyed 8 combat bots 5253 | -9/Storage | Garrison activated, responded to threat 5991 | -9/Storage | Garrison activated, responded to threat 6029 | -9/Storage | Discovered new exit (range 9) 6049 | -9/Storage | Entered Materials 6049 | -8/Materials | Evolved 2 slots: Propulsion x1, Utility x1 6050 | -8/Materials | Loaded intel: 1 garrison access location 6327 | -8/Materials | Build established: Scavenger-Mutant 6541 | -8/Materials | Destroyed 19 combat bots 6682 | -8/Materials | Build established: Hauler-Mutant 6874 | -8/Materials | Discovered new exit (range 13) 7249 | -8/Materials | First assault squad dispatched 7279 | -8/Materials | Entered Factory 7279 | -7/Factory | Evolved 2 slots: Power x1, Propulsion x1 7410 | -7/Factory | Discovered new exit (range 13) 7425 | -7/Factory | Discovered new exit (range 13) 7625 | -7/Factory | Identified exit to Factory 7648 | -7/Factory | Identified exit to Lower Caves 7649 | -7/Factory | Entered Lower Caves 7656 | -7/Lower Caves | Encountered a Warlord checkpoint 7865 | -7/Lower Caves | Build established: Sprinter 8046 | -7/Lower Caves | Found Alien Artifact 8046 | -7/Lower Caves | Identified Core Expander 8046 | -7/Lower Caves | Installed Core Expander, added new Power slot 8067 | -7/Lower Caves | Discovered new exit (range 8) 8070 | -7/Lower Caves | Learned Factory terminal intel 8092 | -7/Lower Caves | Identified exit to Lower Caves 8095 | -7/Lower Caves | Entered another Lower Caves area 8247 | -7/Lower Caves | Discovered new exit (range 12) 8249 | -7/Lower Caves | Identified exit to Data Miner 8250 | -7/Lower Caves | Entered Data Miner 8250 | -7/Data Miner | Discovered new exit (range 6) 8255 | -7/Data Miner | Met Data Miner 8259 | -7/Data Miner | Acquired the access code to Warlord's prototype stash 8259 | -7/Data Miner | Learned location of Section 7 (-3) 8263 | -7/Data Miner | Received God Mode back door access code from Data Miner 8293 | -7/Data Miner | Identified exit to Proximity Caves 8304 | -7/Data Miner | Interfaced with the Data Conduit 8335 | -7/Data Miner | Entered Proximity Caves 8352 | -6/Proximity Caves | Acquired the password to a Derelict Tinkerer's latest research 8469 | -6/Proximity Caves | Spotted B-75 Beast 8489 | -6/Proximity Caves | Learned location of 1 exit from Factory 8520 | -6/Proximity Caves | Discovered exit to Factory (range 12) 8522 | -6/Proximity Caves | Entered Factory 8522 | -6/Factory | Evolved 2 slots: Utility x2 8523 | -6/Factory | Identified exit to Factory 8524 | -6/Factory | Loaded intel: 254 machine locations 8525 | -6/Factory | Loaded intel: 20 terminal locations 8622 | -6/Factory | Identified exit to Lower Caves 8735 | -6/Factory | Fabricated Exp. Terrain Scanner (x1) 8785 | -6/Factory | Fabricated Exp. Terrain Scan Processor (x1) 8794 | -6/Factory | Spotted B-75 Beast 8828 | -6/Factory | Entered Lower Caves 8843 | -6/Lower Caves | Build established: Hacker-Sprinter 9062 | -6/Lower Caves | Discovered new exit (range 9) 9085 | -6/Lower Caves | Identified exit to Lower Caves 9086 | -6/Lower Caves | Entered another Lower Caves area 9109 | -6/Lower Caves | Learned 4 Factory zone layouts 9133 | -6/Lower Caves | Encountered a Warlord checkpoint 9214 | -6/Lower Caves | Discovered new exit (range 9) 9216 | -6/Lower Caves | Identified exit to Zion 9222 | -6/Lower Caves | Entered Zion 9236 | -6/Zion | Found CR-A16's Pointy Stick 9245 | -6/Zion | Discovered new exit (range 12) 9247 | -6/Zion | Received a visual enhancement algorithm 9265 | -6/Zion | System corruption cleaned by Quarantine Array 9335 | -6/Zion | Learned Factory security intel 9369 | -6/Zion | Given the Hacking Drone Bay 9402 | -6/Zion | Gained Derelict followers 9449 | -6/Zion | Gained Derelict followers 9516 | -6/Zion | Found Prototype Device 9516 | -6/Zion | Identified Hacking Drone Bay 9592 | -6/Zion | Identified exit to Proximity Caves 9804 | -6/Zion | Entered Proximity Caves 9804 | -5/Proximity Caves | Accompanied by 9 allies 9853 | -5/Proximity Caves | Spotted B-75 Beast 10143 | -5/Proximity Caves | Learned location of 1 exit from Factory 10172 | -5/Proximity Caves | Discovered exit to Factory (range 15) 10253 | -5/Proximity Caves | Entered Factory 10253 | -5/Factory | Accompanied by 5 allies 10253 | -5/Factory | Evolved 2 slots: Utility x2 10254 | -5/Factory | Identified exit to Factory 10255 | -5/Factory | Identified exit to Extension 10257 | -5/Factory | Loaded intel: 308 machine locations 10292 | -5/Factory | Discovered new exit (range 21) 10440 | -5/Factory | Fabricated Exp. Cesium-ion Thruster (x1) 10551 | -5/Factory | Build established: Hacker-Scout 10609 | -5/Factory | Fabricated Exp. Cesium-ion Thruster? 10650 | -5/Factory | Discovered exit to Extension (range 22) 10657 | -5/Factory | Local fabrication network quarantined 10727 | -5/Factory | Entered Extension 10727 | -5/Extension | Accompanied by 8 allies 10728 | -5/Extension | Loaded intel: 32 machine locations 10734 | -5/Extension | Disrupted transfer network 10745 | -5/Extension | Rescued a captive Derelict 10943 | -5/Extension | Rescued A7 11027 | -5/Extension | First assault squad dispatched 11100 | -5/Extension | Discovered exit to Factory (range 28) 11179 | -5/Extension | Lost 4 parts (2p1n1u) 11204 | -5/Extension | Spotted B-75 Beast 11232 | -5/Extension | Allies destroyed B-75 Beast 11264 | -5/Extension | Extracted ID and sensor layout for unrecognized location from A7's data core 11270 | -5/Extension | Entered Factory 11270 | -4/Factory | Evolved 2 slots: Utility x2 11271 | -4/Factory | Loaded intel: 254 machine locations 11279 | -4/Factory | Discovered new exit (range 16) 11358 | -4/Factory | Fabricated Imp. Propulsion Shielding (x2) 11458 | -4/Factory | Discovered new exit (range 16) 11471 | -4/Factory | Identified exit to Armory 11471 | -4/Factory | Entered Armory 11471 | -4/Armory | Accompanied by 1 ally 11472 | -4/Armory | Loaded intel: 84 machine locations 11562 | -4/Armory | Discovered new exit (range 28) 11591 | -4/Armory | Found Exp. Signal Interpreter 11594 | -4/Armory | Found Exp. Sensor Array 11649 | -4/Armory | Fabricated Mni. Smartbomb Launcher? 11705 | -4/Armory | Discovered new exit (range 29) 11715 | -4/Armory | Discovered new exit (range 22) 11814 | -4/Armory | Spotted B-86 Titan 11826 | -4/Armory | Rewired B-86 Titan 11830 | -4/Armory | Destroyed Titan 7a 11917 | -4/Armory | Fabricated H-66 Slayer (x2) 11920 | -4/Armory | Fabricated Y-64 Sentinel (x2) 11971 | -4/Armory | Fabricated Imp. Hacking Suite (x1) 11993 | -4/Armory | Fabricated H-66 Slayer? 11999 | -4/Armory | P-70 Sage assimilated allied Sentinel 7b 12018 | -4/Armory | Fabricated Imp. Hacking Suite (x1) 12065 | -4/Armory | Fabricated Imp. Hacking Suite (x1) 12111 | -4/Armory | Build established: Hacker-Sprinter 12168 | -4/Armory | Fabricated H-66 Slayer (x2) 12244 | -4/Armory | Fabricated H-66 Slayer (x2) 12255 | -4/Armory | First assault squad dispatched 12324 | -4/Armory | Identified exit to Lab 12329 | -4/Armory | Fabricated H-66 Slayer? 12472 | -4/Armory | Entered Lab 12472 | -4/Lab | Accompanied by 5 allies 12472 | -4/Lab | Discovered new exit (range 9) 12474 | -4/Lab | Identified exit to Research 12475 | -4/Lab | Hidden lab's door opened automatically 12475 | -4/Lab | Sensor layout match revealed 12475 | -4/Lab | Decrypted terminal 12476 | -4/Lab | Gained access to the hidden lab's interior 12477 | -4/Lab | Decrypted terminal 12483 | -4/Lab | Found Prototype Energy Gun 12483 | -4/Lab | Identified Hyp. EM Gauss Rifle 12485 | -4/Lab | Found Hyp. EM Gauss Rifle 12489 | -4/Lab | Found Prototype Protection 12489 | -4/Lab | Identified Exp. Powered Armor 12498 | -4/Lab | Found Prototype Hackware 12498 | -4/Lab | Identified Deep Network Scanner 12522 | -4/Lab | Decrypted terminal 12602 | -4/Lab | Found Alien Artifact 12602 | -4/Lab | Identified Core Regenerator 12602 | -4/Lab | Used Core Regenerator, restored core integrity (+99) 12612 | -4/Lab | Found Alien Artifact 12612 | -4/Lab | Identified Transdimensional Reconstructor 12612 | -4/Lab | Warped through subspace 12637 | -4/Lab | Detected by scanners 12652 | -4/Lab | Found Alien Artifact 12652 | -4/Lab | Identified Integrated Dissipator 12652 | -4/Lab | Installed Integrated Dissipator, increased core heat dissipation (+20) 12662 | -4/Lab | Confronted by A5 12668 | -4/Lab | Entered Research 12668 | -3/Research | Evolved 2 slots: Utility x2 12669 | -3/Research | Loaded intel: 102 machine locations 12769 | -3/Research | Fabricated Mni. Smartbomb Launcher (x1) 12833 | -3/Research | Intercept squad dispatched 12855 | -3/Research | Spotted Tracker 12860 | -3/Research | Destroyed Tracker 12894 | -3/Research | Discovered new exit (range 9) 12896 | -3/Research | Identified exit to Quarantine 12896 | -3/Research | Entered Quarantine 12897 | -3/Quarantine | Loaded intel: 70 machine locations 12899 | -3/Quarantine | Lost 5 parts (1p1n2u1w) 12924 | -3/Quarantine | Found Alien Slashing Weapon 12924 | -3/Quarantine | Identified Sigix Broadsword 12952 | -3/Quarantine | Found Alien Artifact 12966 | -3/Quarantine | Found Alien Artifact 12966 | -3/Quarantine | Identified Phase Redirector 12978 | -3/Quarantine | Found Alien Artifact 12988 | -3/Quarantine | Found Alien Artifact 12996 | -3/Quarantine | Discovered new exit (range 3) 12997 | -3/Quarantine | Identified exit to Research 13012 | -3/Quarantine | Spotted Fortress 13029 | -3/Quarantine | Discovered new exit (range 6) 13030 | -3/Quarantine | Identified exit to Section 7 13030 | -3/Quarantine | Entered Section 7 13031 | -3/Section 7 | Loaded intel: 154 machine locations 13041 | -3/Section 7 | Identified Dimensional Node Initializer 13041 | -3/Section 7 | Identified Subatomic Replicator 13284 | -3/Section 7 | Discovered exit to Research (range 4) 13285 | -3/Section 7 | Entered Research 13285 | -2/Research | Evolved 2 slots: Propulsion x1, Utility x1 13286 | -2/Research | Loaded intel: 95 machine locations 13303 | -2/Research | Identified exit to Testing 13323 | -2/Research | Entered Testing 13324 | -2/Testing | Loaded intel: 71 machine locations 13376 | -2/Testing | Central database locked down 13459 | -2/Testing | Discovered new exit (range 5) 13513 | -2/Testing | Build established: Wizard-Sprinter 13529 | -2/Testing | Fabricated Adv. Reaction Control System (x1) 13563 | -2/Testing | Found Prototype Hackware 13563 | -2/Testing | Identified Ghost Barrier 13622 | -2/Testing | Fabricated Plasma Lance? 13628 | -2/Testing | Identified exit to Access 13635 | -2/Testing | Entered Access 13635 | -1/Access | Evolved 2 slots: Weapon x2 13636 | -1/Access | Loaded intel: 122 machine locations 13810 | -1/Access | Fabricated Plasma Lance? 13923 | -1/Access | Fabricated Plasma Lance (x1) 13985 | -1/Access | Fabricated Plasma Lance? 14039 | -1/Access | Local fabrication network quarantined 14105 | -1/Access | Central database locked down 14112 | -1/Access | Discovered new exit (range 8) 14113 | -1/Access | Identified exit to Command 14114 | -1/Access | Entered Command 14115 | -1/Command | Loaded intel: 56 machine locations 14345 | -1/Command | Found Adv. Powered Armor 14401 | -1/Command | Spotted B-99 Colossus 14420 | -1/Command | Spotted B-99 Colossus 14546 | -1/Command | Spotted M Guard 14546 | -1/Command | Spotted M Guard 14546 | -1/Command | Spotted Combat Programmer 14548 | -1/Command | Spotted Combat Programmer 14581 | -1/Command | System corruption reached 10% 14593 | -1/Command | Destroyed Combat Programmer 14600 | -1/Command | Self-destructed Last Messages --------------- 14587_ EMDS Slug penetrates Wall. 14588_ Penetrated by EMDS Slug. 14588_ Adv. Phase Shifter destroyed. 14590_ Penetrated by EMDS Slug. 14590_ Critical hit. 14591_ Penetrated by EMDS Slug. 14592_ System corrupted: Component data lost. 14592_ Penetrated by EMDS Slug. 14593_ Combat Programmer fries systems beyond repair. 14593_ Combat Programmer destroyed. 14593_ Adv. Reaction Control System destroyed. 14594_ Acquired 27 matter. 14594_ Adv. Force Field destroyed. 14594_ Knocked back. 14595_ Penetrated by EMDS Slug. 14595_ Door malfunctions. 14597_ Nanoactuators destroyed. 14598_ Penetrated by EMDS Slug. 14600_ Field Propulsion Drive destroyed. 14600_ Backup Power VII destroyed. Map ----- +----------------------------------------------------+ | ??????????????????????# h #???????????????# | | ??????????????????????# """" #???????????????# | | ??????????????????????# """" #??????????????BBw | | ??????????????????????# """" #??????????????BB | | ??????????????????????# """" #???????????????## | | ??????????????????????# #????????????????? | | ??????????????????????# | #????????????????? | | ??????????????????????###+"##############???""???? | | ??????????????????????# """"""""""" #??""""??" | | ??????????????????????# """"T"""" #??""""??" | | ??????????????????????# #???""???? | | ??????????????????????# w #????????? | | ??????????????????????# #????????? | | ??????????????????????# ########## | | ??????????????????????# # | | ?????????????????????#"######+##########" | | ?????????????????????##???? + | | ??????????????????????????? ####?#### | | ???###########?#####??????? #???????# | | ???# #?# #??????? #???????# | | ### ### W ######## ############+##### | | / | | / | | / | | Y | | Y@ | | ### ### W # ####### ######## | | ???# #?# # #????# #??????? | | ???### ###?##### #????# #??????? | | ?????#######???????## ###### #??????? | | ????????????????????# p #??????? | | ????????????????????## ########+#+#??????? | | ?????????????????????## #????? ???????? | | ??????????????????????## """ #??? ?????? | | ???????????????????????# """" #?# "" ???? | | ???????????????????????# """" #?# """"#??? | | ???????????????????????# T"" #?# """"#??? | | ???????????????????????# #?# "" #??? | | ???????????????????????#########?# #??? | | ?????????????????????????????????# ! ????? | | ?????????????????????????????????# ????? | | ?????????????????????????????????# ???? | | ?????????????????????????????????# ???? | | ?????????????????????????????????# ???? | | ?????????????????????????????????#############???? | | ?????????????????????????????????????????????????? | | ?????????????????????????????????????????????????? | | ?????????????????????????????????????????????????? | | ?????????????????????????????????????????????????? | | ?????????????????????????????????????????????????? | +----------------------------------------------------+ Best States ------------- Heat Dissipation 72 Energy Generation 49 Energy Capacity 1340 Matter Stores 300 Matter Capacity 300 Sight Range 16 Robot Scan Range 30 Terrain Scan Range 30 Terrain Scan Density 1010 Jamming Range 16 Armor Coverage 400 Propulsion Shielding 66 Utility Shielding 66 Melee Speed Boost 30 Phase Shifting 15 Evasion (%) 95 Melee Accuracy 8 Recoil Reduction 4 Offensive Hacking 61 Defensive Hacking 20 Item Schematics ----------------- Lrg. Storage Unit | -10/Materials | Hacked Hcp. Storage Unit | -10/Materials | Hacked Exp. Sensor Array | -9/Materials | Scanalyzed Lgt. Angular Momentum Engine | -9/Materials | Scanalyzed Med. Storage Unit | -9/Materials | Scanalyzed Imp. Light Armor Plating | -9/Materials | Scanalyzed Imp. Propulsion Shielding | -7/Factory | Hacked Plasma Sword | -7/Data Miner | Free Mni. Smartbomb Launcher | -7/Data Miner | Free Cloaking Device | -7/Data Miner | Free Exp. Terrain Scan Processor | -7/Data Miner | Free Exp. Terrain Scanner | -7/Data Miner | Free Exp. Cesium-ion Thruster | -7/Data Miner | Free Cmb. Gravmag System | -7/Data Miner | Free Lgt. Regenerative Plating | -7/Data Miner | Free Combat Drone Bay | -7/Data Miner | Free Imp. Hacking Suite | -6/Factory | Hacked Adv. Force Field | -5/Factory | Hacked Lgt. Quantum Reactor | -4/Factory | Hacked Nanoactuators | -3/Research | Hacked Plasma Lance | -3/Research | Hacked Adv. Reaction Control System | -2/Testing | Hacked Adv. Phase Shifter | -2/Testing | Hacked Robot Schematics ------------------ H-66 Slayer | -6/Factory | Hacked Fabricated ------------ Exp. Terrain Scanner | x1 | -6/Factory Exp. Terrain Scan Processor | x1 | -6/Factory Exp. Cesium-ion Thruster | x1 | -5/Factory Exp. Cesium-ion Thruster | x1 | -5/Factory Imp. Propulsion Shielding | x2 | -4/Factory Mni. Smartbomb Launcher | x1 | -4/Armory H-66 Slayer | x2 | -4/Armory Y-64 Sentinel | x2 | -4/Armory | Preloaded Imp. Hacking Suite | x1 | -4/Armory H-66 Slayer | x2 | -4/Armory Imp. Hacking Suite | x1 | -4/Armory Imp. Hacking Suite | x1 | -4/Armory H-66 Slayer | x2 | -4/Armory H-66 Slayer | x2 | -4/Armory H-66 Slayer | x2 | -4/Armory Mni. Smartbomb Launcher | x1 | -3/Research Adv. Reaction Control System | x1 | -2/Testing Plasma Lance | x1 | -2/Testing Plasma Lance | x1 | -1/Access Plasma Lance | x1 | -1/Access Plasma Lance | x1 | -1/Access Alien Tech Used ----------------- Core Expander Core Regenerator Transdimensional Reconstructor Integrated Dissipator Sigix Broadsword Phase Redirector Achievements -------------- None Challenges ------------ None Game ------ Seed MetafiberNullSlayer Manual? 0 Play Time 03:07:52 Cumulative 611.0 hours Start 2021.06.25 @ 14:17:06 End 2021.06.25 @ 19:14:08 Sessions 9 Manual Loads 0 Difficulty Rogue Special Mode None Game No. 366 Rogue 366 Adventurer 0 Explorer 0 Win Type - Total 7 Types 4/0/1/1/1/0/0/0/0 Lore% 89 Gallery% 90 Achievement% 71 Wizard Run 0 Options --------- ASCII 0 Keyboard 0 Movement Mouse Keybinds 1 Fullscreen 2 Font 24/Smallcaps Map View 76x50 Tactical HUD 1 Map Filters NONE Filters NONE Steam 1 RUN: c332344a-8b69-4ac0-8405-8bcd596217a1